Cogmind - Beta 13 @@@ ROGUE MODE // 2024.04.14 @ 21:18:33 Player: Cherman0 Result: Self-destructed Performance ------------- Evolutions (0) 0 Regions Visited (4) 800 Robots Destroyed (24) 120 Value Destroyed (489) 489 Prototype IDs (27) 540 Alien Tech Used (0) 0 Bonus (300) 300 TOTAL SCORE: 2249 Bonus ------- Aligned with FarCom 300 Cogmind --------- Core Integrity 131/250 Matter 280/300 Energy 125/125 System Corruption 0% Temperature Cool (0) Movement Walking (190) Ox1 Location -9/Mines Parts ------- > --- POWER (1) -------- Light Ion Engine > --- PROPULSION (2) --- Aluminum Leg Aluminum Leg > --- UTILITY (2) ------ Medium Storage Unit Sensor Drone Bay (17/20) > --- WEAPON (2) ------- Mini Grenade Launcher Maul > --- INVENTORY (10) --- Aluminum Leg Improved Heat Sink High-capacity Matter Pod (200) Structural Scanner Cloak of Protection Layered Light Armor Plating Heavy EM Pulse Gun Advanced Beam Cannon Advanced Beam Cannon Mini Grenade Launcher Peak State ------------ > --- POWER ------------ Light Ion Engine > --- PROPULSION ------- Aluminum Leg Aluminum Leg > --- UTILITY ---------- Medium Storage Unit Sensor Drone Bay > --- WEAPON ----------- Mini Grenade Launcher Mini Grenade Launcher > --- INVENTORY -------- Light Nuclear Core Aluminum Leg Aluminum Leg Improved Heat Sink High-capacity Matter Pod Structural Scanner Heavy EM Pulse Gun Advanced Beam Cannon Advanced Beam Cannon Maul [Rating: 18] Favorites ----------- Power Light Ion Engine Engine Light Ion Engine Propulsion Aluminum Leg Treads Light Treads Leg Aluminum Leg Utility Medium Storage Unit Device Sensor Drone Bay Storage Medium Storage Unit Weapon Maul Energy Gun Medium Laser Launcher Mini Grenade Launcher Impact Weapon Maul Build | -11 -10 -10 -10 -9 ------- Run | Yrd Mat Min Exi Min Slots Evolved . | . . . . . Power . | . . . . . Propulsion . | . . . . . Utility . | . . . . . Weapon . | . . . . . Parts Attached 33 | . 23 7 . 3 Power 2 | . 1 1 . . Engine 2 | . 1 1 . . Core . | . . . . . Reactor . | . . . . . Propulsion 7 | . 5 . . 2 Treads 2 | . 2 . . . Leg 5 | . 3 . . 2 Wheel . | . . . . . Hover . | . . . . . Flight . | . . . . . Utility 8 | . 7 1 . . Device 4 | . 3 1 . . Storage 4 | . 4 . . . Processor . | . . . . . Hackware . | . . . . . Protection . | . . . . . Artifact . | . . . . . Weapon 16 | . 10 5 . 1 Energy Gun 9 | . 8 1 . . Energy Cannon . | . . . . . Ballistic Gun . | . . . . . Ballistic Cannon . | . . . . . Launcher 4 | . 2 2 . . Special Weapon . | . . . . . Impact Weapon 3 | . . 2 . 1 Slashing Weapon . | . . . . . Piercing Weapon . | . . . . . Special Melee Weapon . | . . . . . Unidentified Prototypes 1 | . . 1 . . Parts Lost 1 | . . 1 . . Power . | . . . . . Propulsion . | . . . . . Utility . | . . . . . Weapon 1 | . . 1 . . Highest Loss Streak 1 | . . 1 . . To Critical Strikes . | . . . . . Average Slot Usage (%) 98 | . 96 99 100 100 Engine 13 | . 13 14 14 14 Leg 27 | . 27 28 28 28 Device 13 | . 12 14 14 14 Storage 13 | . 13 14 14 14 Energy Gun 11 | . 26 3 . . Launcher 7 | . . 10 14 14 Impact Weapon 8 | . . 13 14 14 Naked Turns 2 | . 2 . . . Heaviest Build 33 | 12 20 33 31 31 Greatest Support 40 | 20 40 20 20 20 Greatest Overweight (x) 1 | . . 1 1 1 Average Overweight (x) . | . . . 1 1 Largest Inventory Capacity 20 | 8 20 10 10 10 Average Capacity 9 | 8 8 10 10 10 Most Carried 10 | 6 10 10 10 10 Average Carried 9 | 6 8 9 9 9 Final Capacity 10 | 8 10 10 10 10 Final Carried 10 | 6 10 10 10 10 Class Distribution -------------------- 100% | Mutant Dominant Class ---------------- Mutant | -10/Materials Mutant | -10/Mines Mutant | -10/Exiles Mutant | -9/Mines Resources | -11 -10 -10 -10 -9 ----------- Run | Yrd Mat Min Exi Min Matter Collected 769 | 200 264 262 . 43 Remotely . | . . . . . Salvage Created 602 | . 415 187 . . Parts 38 | . 30 8 . . Haulers Intercepted 2 | . 2 . . . Recyclers Shooed 1 | . 1 . . . Parts Field Recycled . | . . . . . Retrieved Matter . | . . . . . Parts Self-Destructed . | . . . . . Prevented . | . . . . . Kills | -11 -10 -10 -10 -9 ------- Run | Yrd Mat Min Exi Min Combat Hostiles Destroyed 16 | . 9 7 . . Melee 2 | . . 2 . . Guns 5 | . 5 . . . AOE 7 | . 3 4 . . Classes Destroyed 8 | . 8 . . . Worker 1 | . 1 . . . Builder 2 | . 1 1 . . Tunneler 1 | . 1 . . . Hauler 2 | . 2 . . . Recycler 1 | . 1 . . . Watcher 1 | . 1 . . . Swarmer 7 | . 4 3 . . Grunt 9 | . 5 4 . . Best Kill Streak 4 | . 4 3 . . Combat Bots Only 3 | . 3 3 . . Max Kills in Single Turn 3 | . 3 3 . . Gunslinging . | . . . . . Exploded 2 | . 2 2 . . Melee 1 | . . 1 . . Uniques/NPCs Destroyed . | . . . . . Combat | -11 -10 -10 -10 -9 -------- Run | Yrd Mat Min Exi Min Hostile Shots Fired 67 | . 36 29 . 2 Missed 30 | . 21 9 . . Damage Taken 827 | . 250 512 . 65 Core 119 | . 41 78 . . Absorbed by Shields . | . . . . . Regen/Repaired (Parts) 52 | . 52 . . . Core Remaining (%) 100 | 100 . . . . Volleys Fired 46 | . 39 7 . . Largest 2 | . 2 2 . . Hottest 100 | . 100 90 . . Shots Fired 81 | . 69 12 . . Gun 74 | . 65 9 . . Cannon . | . . . . . Launcher 7 | . 4 3 . . Special . | . . . . . Kinetic . | . . . . . Thermal 48 | . 48 . . . Explosive 7 | . 4 3 . . Electromagnetic 26 | . 17 9 . . Robot Hit Streak 12 | . 12 3 . . Robot Miss Streak 5 | . 5 2 . . Penetration Max . | . . . . . Secondary Targets . | . . . . . Shots Hit Robots 52 | . 38 13 . 1 Core Hits 27 | . 19 8 . . Critical Kills . | . . . . . Critical Parts Destroyed . | . . . . . Critical Strikes 5 | . 5 . . . Burn 5 | . 5 . . . Melee Attacks 16 | . . 14 . 2 Impact 16 | . . 14 . 2 Slashing . | . . . . . Piercing . | . . . . . Sneak Attacks 1 | . . . . 1 Combat Hostiles . | . . . . . Follow-up Attacks . | . . . . . Damage Inflicted 1430 | . 787 541 . 102 Guns 524 | . 471 53 . . Cannons . | . . . . . Explosions 527 | . 294 233 . . Melee 357 | . . 255 . 102 Ramming 22 | . 22 . . . Kinetic . | . . . . . Thermal 472 | . 472 . . . Explosive 453 | . 220 233 . . Electromagnetic 126 | . 73 53 . . Impact 357 | . . 255 . 102 Slashing . | . . . . . Piercing . | . . . . . Highest Corruption . | . . . . . Average Corruption . | . . . . . Corruption Purged . | . . . . . Corruption Blocked . | . . . . . Overload Shots . | . . . . . Overflow Damage 91 | . . 80 . 11 Projectiles 11 | . . . . 11 Explosions . | . . . . . Melee 80 | . . 80 . . Knockbacks 3 | . 1 . . 2 Impact 2 | . 1 . . 1 Kinetic . | . . . . . Secondary 1 | . . . . 1 Self-Inflicted Damage 59 | . 59 . . . Shots 2 | . 2 . . . Rammed 1 | . 1 . . . Targets Rammed 3 | . 3 . . . Kicked 2 | . 2 . . . Crushed . | . . . . . Highest Temperature 270 | . 270 120 . . Average Temperature 66 | . 68 54 . . Received Heat Transfer 45 | . 45 . . . Siege Activations . | . . . . . Robots Corrupted 1 | . . 1 . . Combat Hostiles 1 | . . 1 . . Parts Fried 1 | . . 1 . . Impact Corruptions 4 | . . 3 . 1 Robots Melted 1 | . 1 . . . Combat Hostiles 1 | . 1 . . . Parts Melted 3 | . 3 . . . Heat Transferred 1654 | . 1654 . . . Parts Sabotaged . | . . . . . Parts Stolen . | . . . . . Parts Stripped . | . . . . . Power Chain Reactions 1 | . 1 . . . Alert | -11 -10 -10 -10 -9 ------- Run | Yrd Mat Min Exi Min Peak Influence 163 | . 163 153 . 1 Initial 30 | . . 30 . . Average 45 | . 68 42 . . Maximum Alert Level . | . . . . . Low Security (%) 100 | 100 100 100 . 100 Level 1 . | . . . . . Level 2 . | . . . . . Level 3 . | . . . . . Level 4 . | . . . . . Level 5 . | . . . . . High Security . | . . . . . Max Security . | . . . . . Squads Dispatched 1 | . 1 . . . Investigation 1 | . 1 . . . Extermination . | . . . . . Reinforcement . | . . . . . Assault . | . . . . . Garrison . | . . . . . Intercept . | . . . . . Searches Triggered . | . . . . . Construction Impeded . | . . . . . Haulers Reinforced . | . . . . . Active Scanning Responses . | . . . . . Cargo Convoy Interrupts . | . . . . . Stealth | -11 -10 -10 -10 -9 --------- Run | Yrd Mat Min Exi Min Distress Signals . | . . . . . Communications Jammed . | . . . . . Distress Signals . | . . . . . Times Spotted 39 | . 23 7 . 9 Peak Tracking Total 4 | . 4 3 . 4 Tactical Retreats 1 | . 1 . . . Traps | -11 -10 -10 -10 -9 ------- Run | Yrd Mat Min Exi Min Traps Triggered 2 | . 2 . . . Indirectly . | . . . . . Trap Hack Attempts . | . . . . . Triggered . | . . . . . Disarmed . | . . . . . Reprogrammed . | . . . . . Reused . | . . . . . Traps Extracted . | . . . . . Installed . | . . . . . Triggered . | . . . . . Machines | -11 -10 -10 -10 -9 ---------- Run | Yrd Mat Min Exi Min Machines Disabled 3 | . 3 . . . Max in Single Turn 1 | . 1 . . . Machines Repaired . | . . . . . Machines Dismantled . | . . . . . Machines Sabotaged . | . . . . . Overloaded Fab Kills . | . . . . . Hacking | -11 -10 -10 -10 -9 --------- Run | Yrd Mat Min Exi Min Machines Accessed 12 | . 9 1 2 . Terminals 6 | . 6 . . . Fabricators . | . . . . . Repair Stations 1 | . 1 . . . Recycling Units 2 | . 2 . . . Scanalyzers . | . . . . . Garrison Access . | . . . . . Total Hacks 30 | . 27 1 2 . Successful 19 | . 16 1 2 . Failed 11 | . 11 . . . Catastrophic . | . . . . . Database Lockouts . | . . . . . Manual 19 | . 18 . 1 . Terminals 17 | . 17 . . . Fabricators . | . . . . . Repair Stations 6 | . 6 . . . Recycling Units 4 | . 4 . . . Scanalyzers . | . . . . . Garrison Access . | . . . . . Terminal Hacks 8 | . 5 1 2 . Record 1 | . . . 1 . Robot Analysis 2 | . 2 . . . Prototype ID Bank 2 | . 2 . . . Open Door 1 | . . 1 . . Terminal Index 1 | . 1 . . . Derelict Proto ID Bank 1 | . . . 1 . Fabricator Hacks . | . . . . . Repair Station Hacks 5 | . 5 . . . Scan Component 3 | . 3 . . . Repair 2 | . 2 . . . Recycling Unit Hacks . | . . . . . Scanalyzer . | . . . . . Garrison Access Hacks . | . . . . . Unauthorized Hacks 5 | . 5 . . . Terminals 2 | . 2 . . . Botnet 2 | . 2 . . . Fabricators . | . . . . . Repair Stations . | . . . . . Recycling Units 3 | . 3 . . . Reject 2 | . 2 . . . Recyclers 1 | . 1 . . . Scanalyzers . | . . . . . Garrison Access . | . . . . . Data Cores Recovered . | . . . . . Used . | . . . . . Hacking Detections 9 | . 9 . . . Full Trace Events 1 | . 1 . . . Feedback Events . | . . . . . Feedback Blocked . | . . . . . Robot Schematics Acquired . | . . . . . Robots Built . | . . . . . Authchips . | . . . . . Time . | . . . . . Total Robot Build Rating . | . . . . . Part Schematics Acquired . | . . . . . Parts Built . | . . . . . Authchips . | . . . . . Time . | . . . . . Total Part Build Rating . | . . . . . Parts Repaired 2 | . 2 . . . Time 64 | . 64 . . . Parts Recycled . | . . . . . Recycled Matter . | . . . . . Retrieved Matter . | . . . . . Retrieved Components . | . . . . . Parts Scanalyzed . | . . . . . Part Schematics Acquired . | . . . . . Parts Damaged . | . . . . . Bothacking | -11 -10 -10 -10 -9 ------------ Run | Yrd Mat Min Exi Min Used RIF Installer . | . . . . . Robots Hacked . | . . . . . Non-combat . | . . . . . Combat . | . . . . . Robot Hacks Applied . | . . . . . Relay Couplers Released . | . . . . . Fabnet Peak Effective % . | . . . . . Robots Rewired . | . . . . . Allies Hacked . | . . . . . Hacks Repelled . | . . . . . Allies | -11 -10 -10 -10 -9 -------- Run | Yrd Mat Min Exi Min Total Allies 5 | . . . . 5 Largest Group 5 | . . . . 5 Highest-Rated Group 86 | . . . . 86 Highest-Rated Ally 31 | . . . . 31 Total Orders 11 | . . 4 1 6 EXPLORE 3 | . . . 1 2 RETURN 8 | . . 4 . 4 Ally Attacks 15 | . . . . 15 Total Damage 239 | . . . . 239 Kills 4 | . . . . 4 Allies Corrupted 1 | . . . . 1 Allies Melted . | . . . . . Intel | -11 -10 -10 -10 -9 ------- Run | Yrd Mat Min Exi Min Robot Analysis Total 2 | . 2 . . . Derelict Logs Recovered 3 | . . 3 . . Drone Launches 11 | . . 6 . 5 Drone Recoveries 8 | . . 5 . 3 Exploration | -11 -10 -10 -10 -9 ------------- Run | Yrd Mat Min Exi Min Turns Passed 4097 | 10 1609 1285 496 697 Spaces Moved 2142 | 9 888 673 250 322 Core 2 | . 2 . . . Treads 22 | . 22 . . . Legs 2118 | 9 864 673 250 322 Wheels . | . . . . . Hover . | . . . . . Flight . | . . . . . Fastest Speed 50 | 120 50 120 190 190 Average Speed 157 | 120 120 179 190 190 Slowest Speed 190 | 120 160 190 190 190 Overloaded Moves . | . . . . . Propulsion Burnouts . | . . . . . Robots Hopped . | . . . . . Cave-ins Triggered 1 | . . 1 . . Exploration Rate (%) 73 | 2 98 98 88 80 Regions Visited 4 Branch Regions 3 Pre-discovered Areas 2 | . . 1 1 . Known Exits Taken . | . . . . . Unknown Exits Taken 4 | 1 1 1 1 . Scrap Searched 4 | . . 2 . 2 Spaces Dug 11 | . 7 3 . 1 Terrain Destroyed 54 | . 20 33 . 1 Melee 4 | . . 3 . 1 Projectile . | . . . . . AOE 50 | . 20 30 . . Terrain Rammed . | . . . . . Walls Destroyed . | . . . . . Machines Disabled . | . . . . . Actions | -11 -10 -10 -10 -9 --------- Run | Yrd Mat Min Exi Min Total 2751 | 8 1362 706 272 403 Wait 449 | . 354 1 21 73 Move 2138 | 8 887 672 249 322 Hop . | . . . . . Pick Up 33 | . 28 3 1 1 Fast Attach 8 | . 8 . . . Attach 6 | . 5 1 . . Detach 2 | . 2 . . . Swap 19 | . 10 6 . 3 Drop 31 | . 26 2 1 2 Fire 46 | . 39 7 . . Melee 16 | . . 14 . 2 Ram . | . . . . . Kick 2 | . 2 . . . Crush 1 | . 1 . . . Escape Stasis . | . . . . . Rewire . | . . . . . Trap . | . . . . . Miscellaneous . | . . . . . Route ------- -11/Scrapyard -10/Materials (discovered 5 exits: *Mat x3 / *Min x2) -10/Mines (discovered 3 exits: *Mat x2 / *Exi) -10/Exiles (discovered 2 exits: [*Min x2]) -9/Mines (discovered 1 exit: *Mat) History --------- Turn | Location | Event 1 | -11/Scrapyard | Discovered new exit (range 3) 11 | -11/Scrapyard | Entered Materials 314 | -10/Materials | Build established: Mutant 497 | -10/Materials | Discovered new exit (range 16) 674 | -10/Materials | Discovered new exit (range 4) 775 | -10/Materials | Discovered new exit (range 16) 986 | -10/Materials | Discovered new exit (range 11) 1210 | -10/Materials | Discovered new exit (range 15) 1476 | -10/Materials | Repaired Imp. Heat Sink 1503 | -10/Materials | Repaired Aluminum Leg 1620 | -10/Materials | Entered Mines 1673 | -10/Mines | Met a Derelict bent on vengeance 1762 | -10/Mines | Learned Materials stockpile data 1779 | -10/Mines | Learned location of 1 exit from Materials 1781 | -10/Mines | Found the Drone Emporium 1788 | -10/Mines | Found Prototype Device 1789 | -10/Mines | Identified Sensor Drone Bay 2097 | -10/Mines | Discovered new exit (range 13) 2128 | -10/Mines | Identified exit to Materials 2140 | -10/Mines | Crushed by falling debris 2373 | -10/Mines | Discovered exit to Materials (range 11) 2563 | -10/Mines | Deemed a non-threat by the Exiles lab entrance 2563 | -10/Mines | Discovered new exit (range 5) 2905 | -10/Mines | Entered Exiles 2905 | -10/Exiles | Accompanied by 1 ally 2930 | -10/Exiles | Discovered new exit (range 16) 2972 | -10/Exiles | Met 8R-AWN 3004 | -10/Exiles | Met EX-HEX 3063 | -10/Exiles | Discovered new exit (range 58) 3063 | -10/Exiles | Met EX-BIN 3090 | -10/Exiles | Met EX-DEC 3097 | -10/Exiles | Learned location of Zion (-7) 3158 | -10/Exiles | Aligned with FarCom system 3160 | -10/Exiles | Given EX-Vault access code 3211 | -10/Exiles | Opened EX-Vault 3227 | -10/Exiles | Found Cloak of Protection 3264 | -10/Exiles | Warned to stay clear of 0b10 Research branches 3401 | -10/Exiles | Left Exiles lab with Cloak of Protection 3401 | -10/Exiles | Entered Mines 3401 | -9/Mines | Accompanied by 1 ally 3413 | -9/Mines | Discovered new exit (range 25) 3480 | -9/Mines | Identified exit to Materials 3704 | -9/Mines | Assembled infested the area 3840 | -9/Mines | Assisted by bots powering up and referring to "LRC-V3" 4098 | -9/Mines | Self-destructed Last Messages --------------- 03955_ as-33268 destroyed. 03988_ Searching scrap... 03988_ Found Particle Cannon. 03988_ Found Maul. 03988_ Found Terrain Scan Processor. 03988_ Found Weight Redist. System. 03988_ Found 15 Matter. 03993_ Dropped Maul. 04024_ as-09404 destroyed. 04029_ Acquired 10 matter. 04075_ U-05 Engineer lays Concrete. 04077_ U-05 Engineer builds a Wall. 04081_ U-05 Engineer lays Concrete. 04082_ U-05 Engineer builds a Wall. 04090_ U-05 Engineer lays Concrete. 04091_ Dropped Aluminum Leg. 04091_ U-05 Engineer builds a Wall. 04095_ Acquired Lyr. Light Armor Plating. 04097_ U-05 Engineer lays Concrete. 04098_ U-05 Engineer builds a Wall. Map ----- +----------------------------------------------------+ | # #?# #???????# #??# #?? | | # #?# #???????######## #??## #### #?? | | # #?# #??????????????## #????# ##???????? | | # #?# #???????????????# $ #????#%#????????? | | # #?# #??????????????## #????# #????????? | | # #?# #??????######### ##????# #????????? | | # #?? ???? ##?????# #?????""" | | #??#?????????####### ##????### ## | | ###??????????????????## # ###?????# #??? | | ??????????????????????#### #????#### ### ##??? | | ????????????######???????# #??### #?? #???? | | ???????????## #####??# #?## ##?? #???? | | ???????????# ##?# #?# ##?? ##???? | | ???????????# ### #?# #???#????? | | ????????????# #?## #????????? | | ?????????????# #??#### #????????? | | ????????????## """ ######?????## ##????????? | | ####???????## """ #???????????## #?????????? | | ##??????# """ #????????????# #??####???? | | #??????# #????????????# #?## ##?? | | #?????## ## #??????????## ### #?? | | ##???## #######????####### ## ##? | | ##?## ##????####### ## ## | | ### ##???###"" # ##? # | | # a ##????# !] ####??? | | # ## ##??????# g@ " #???????# | | # ### #???????#g g"= ## ##????????# | | ##?#r#???????# g[=#%! ###??#???????## | | a #??# #???????# !#=% # ???????## | | #### #???????####!# # ##????#### | | #??????#######u #???## # | | ##### #??????# %n|= z #??## ## | | ### ###???#=######## ##### #??# ### | | #?####?????# %% #???# ###?## #?# | | #??????????####### ####???# ####### ##?# | | #????????????????#%###????###### ## ##### | | #??????#####????##% ##????????# ### # # | | #?????## ###??# % ##???????# #####?# # # | | ##????#/] #### ######### ####### # # | | ###??#%! # # | | ##?##! ######### | | #??### #### ###?????## | | #????## #??## % ####????# | | #?????# #???####### #????# | | #?????#####?????????##### #????## ## | | ##???????????????????????###### #?????## #### | | #?????????????????????????????# ######## #??? | | #?????????????????????????????# #??? | | ##?????????????????????????????#############??? | | ##?????????????????????????????????????????????? | +----------------------------------------------------+ Best States ------------- Heat Dissipation 39 Energy Generation 10 Energy Capacity 125 Matter Stores 300 Matter Capacity 300 Sight Range 16 Terrain Scan Density 10 Evasion (%) 55 Recoil Reduction 2 Item Schematics ----------------- None Robot Schematics ------------------ None Fabricated ------------ Nothing Alien Tech Used ----------------- None Achievements -------------- Power Corrupts Challenges ------------ None Game ------ Seed FissionFactoryBox Manual? 0 Play Time 00:45:52 Cumulative 32.0 hours Start 2024.04.12 @ 15:01:15 End 2024.04.14 @ 21:18:33 Sessions 3 Manual Loads 0 Difficulty Rogue Special Mode None Game No. 19 Rogue 19 Adventurer 0 Explorer 0 Win Type - Total 0 Types 0/0/0/0/0/0/0/0/0 Lore% 22 Gallery% 24 Achievement% 22 Wizard Run 0 Options --------- Layout 0 ASCII 0 Keyboard 0 Movement Numpad Keybinds 1 Fullscreen 1 Font 18/SmallcapsGlow Map View 76x50 Zoom Use 0% Tactical HUD 1 Map Filters NONE Filters NONE Steam 1 RUN: d4ce0b17-d76a-47ab-9867-cfc4f2ba0a95